[Event "Schack-SM 2023: Veteran-SM 50+"]
[Site "Helsingborg Arena, Mellersta Stenbocksgatan 14, Helsingborg, Sweden"]
[Date "2023.07.08"]
[Round "8.4"]
[White "Nilsson, Patrik 1968"]
[Black "Moborn, Anders"]
[Result "1-0"]
[TimeControl "90 minutes for 40 moves + 30 minutes for the rest of games + 30 seconds per move from move one."]
[WhiteElo "1931"]
[BlackElo "1956"]

1. e4 {[%clk 01:30:51]} {[%emt 00:00:07]} e6 {[%clk 01:30:48]} {[%emt
00:00:13]} 2. d4 {[%clk 01:31:14]} {[%emt 00:00:06]} d5 {[%clk 01:31:07]}
{[%emt 00:00:12]} 3. Nd2 {[%clk 01:31:35]} {[%emt 00:00:09]} Nf6 {[%clk
01:31:04]} {[%emt 00:00:33]} 4. e5 {[%clk 01:31:54]} {[%emt 00:00:10]} Nfd7
{[%clk 01:31:28]} {[%emt 00:00:07]} 5. Bd3 {[%clk 01:32:13]} {[%emt 00:00:11]}
c5 {[%clk 01:31:47]} {[%emt 00:00:11]} 6. c3 {[%clk 01:32:29]} {[%emt
00:00:14]} Nc6 {[%clk 01:32:08]} {[%emt 00:00:09]} 7. Ngf3 {[%clk 01:32:40]}
{[%emt 00:00:18]} cxd4 {[%clk 01:30:31]} {[%emt 00:02:08]} 8. cxd4 {[%clk
01:32:52]} {[%emt 00:00:18]} f6 {[%clk 01:28:44]} {[%emt 00:02:17]} 9. exf6
{[%clk 01:32:37]} {[%emt 00:00:44]} Nxf6 {[%clk 01:29:07]} {[%emt 00:00:08]} 10.
O-O {[%clk 01:32:19]} {[%emt 00:00:48]} Qb6 {[%clk 01:26:03]} {[%emt 00:03:35]}
11. Re1 {[%clk 01:26:12]} {[%emt 00:06:35]} Bd6 {[%clk 01:15:28]} {[%emt
00:11:06]} 12. Nf1 {[%clk 01:22:31]} {[%emt 00:04:11]} O-O {[%clk 01:14:14]}
{[%emt 00:01:45]} 13. b3 {[%clk 01:01:12]} {[%emt 00:21:49]} Bb4 {[%clk
00:56:43]} {[%emt 00:18:01]} 14. Re2 {[%clk 00:54:26]} {[%emt 00:07:15]} Bd7
{[%clk 00:22:40]} {[%emt 00:34:34]} 15. Bb2 {[%clk 00:52:15]} {[%emt 00:02:39]}
Rac8 {[%clk 00:17:58]} {[%emt 00:05:14]} 16. Ng3 {[%clk 00:47:59]} {[%emt
00:04:45]} Rce8 {[%clk 00:09:27]} {[%emt 00:09:02]} 17. h3 {[%clk 00:43:49]}
{[%emt 00:04:39]} Bd6 {[%clk 00:09:35]} {[%emt 00:00:23]} 18. Ne5 {[%clk
00:39:47]} {[%emt 00:04:31]} Bc8 {[%clk 00:08:39]} {[%emt 00:01:26]} 19. Rc1
{[%clk 00:37:49]} {[%emt 00:02:28]} Bb8 {[%clk 00:04:46]} {[%emt 00:04:24]} 20.
Bb1 {[%clk 00:29:08]} {[%emt 00:09:09]} Bd6 {[%clk 00:03:33]} {[%emt 00:01:45]}
21. a3 {[%clk 00:23:15]} {[%emt 00:06:23]} Qd8 {[%clk 00:01:27]} {[%emt
00:02:36]} 22. Qd3 {[%clk 00:21:47]} {[%emt 00:01:57]} Qe7 {[%clk 00:01:33]}
{[%emt 00:00:25]} 23. Nh5 {[%clk 00:14:26]} {[%emt 00:07:50]} Ne4 {[%clk
00:01:25]} {[%emt 00:00:39]} 24. Rxe4 {[%clk 00:12:04]} {[%emt 00:02:51]} dxe4
{[%clk 00:01:42]} {[%emt 00:00:14]} 25. Qxe4 {[%clk 00:12:15]} {[%emt
00:00:18]} g6 {[%clk 00:01:43]} {[%emt 00:00:30]} 26. Nxg6 {[%clk 00:10:37]}
{[%emt 00:02:08]} Qf7 {[%clk 00:01:28]} {[%emt 00:00:45]} 27. Nxf8 {[%clk
00:10:15]} {[%emt 00:00:52]} Rxf8 {[%clk 00:01:49]} {[%emt 00:00:08]} 28. Nf6+
{[%clk 00:08:51]} {[%emt 00:01:54]} Kh8 {[%clk 00:02:02]} {[%emt 00:00:17]} 29.
Rxc6 {[%clk 00:06:40]} {[%emt 00:02:41]} bxc6 {[%clk 00:02:27]} {[%emt
00:00:06]} 30. Qh4 {[%clk 00:06:26]} {[%emt 00:00:44]} Be7 {[%clk 00:00:50]}
{[%emt 00:02:07]} 31. d5 {[%clk 00:06:27]} {[%emt 00:00:28]} Qg7 {[%clk
00:00:45]} {[%emt 00:00:35]} 32. Qxh7+ {[%clk 00:05:11]} {[%emt 00:01:45]} Qxh7
{[%clk 00:01:08]} {[%emt 00:00:08]} 33. Nxh7+ {[%clk 00:05:28]} {[%emt
00:00:13]} Kg8 {[%clk 00:01:30]} {[%emt 00:00:09]} 34. Nxf8 {[%clk 00:05:49]}
{[%emt 00:00:09]} 1-0

[Event "Schack-SM 2023: Mastarklassen"]
[Site "Helsingborg Arena, Mellersta Stenbocksgatan 14, Helsingborg, Sweden"]
[Date "2023.07.08"]
[Round "8.1"]
[White "Lundin, Jan"]
[Black "Joensson, Jacob"]
[Result "1-0"]
[TimeControl "90 minutes for 40 moves + 30 minutes for the rest of games + 30 seconds per move from move one."]
[WhiteTitle "FM"]
[WhiteElo "2203"]
[BlackElo "2039"]

1. e4 {[%clk 01:30:57]} {[%emt 00:00:03]} e5 {[%clk 01:30:55]} {[%emt
00:00:05]} 2. Nf3 {[%clk 01:31:10]} {[%emt 00:00:17]} Nc6 {[%clk 01:31:21]}
{[%emt 00:00:05]} 3. Nc3 {[%clk 01:31:02]} {[%emt 00:00:38]} Nf6 {[%clk
01:30:22]} {[%emt 00:01:28]} 4. d4 {[%clk 01:31:23]} {[%emt 00:00:09]} exd4
{[%clk 01:30:14]} {[%emt 00:00:38]} 5. Nxd4 {[%clk 01:31:44]} {[%emt 00:00:09]}
Be7 {[%clk 01:26:38]} {[%emt 00:04:06]} 6. Nxc6 {[%clk 01:30:57]} {[%emt
00:01:17]} dxc6 {[%clk 01:27:00]} {[%emt 00:00:09]} 7. Qxd8+ {[%clk 01:30:46]}
{[%emt 00:00:41]} Bxd8 {[%clk 01:27:20]} {[%emt 00:00:09]} 8. Bf4 {[%clk
01:21:06]} {[%emt 00:10:10]} Be6 {[%clk 01:24:49]} {[%emt 00:03:02]} 9. Be2
{[%clk 01:20:27]} {[%emt 00:01:06]} Rc8 {[%clk 01:23:37]} {[%emt 00:01:45]} 10.
f3 {[%clk 01:12:02]} {[%emt 00:08:54]} Nd7 {[%clk 01:15:56]} {[%emt 00:08:11]}
11. g4 {[%clk 01:00:34]} {[%emt 00:11:58]} g5 {[%clk 00:59:36]} {[%emt
00:16:51]} 12. Bg3 {[%clk 00:59:15]} {[%emt 00:01:47]} h5 {[%clk 00:59:52]}
{[%emt 00:00:15]} 13. gxh5 {[%clk 00:58:23]} {[%emt 00:01:22]} Bf6 {[%clk
00:57:05]} {[%emt 00:03:18]} 14. f4 {[%clk 00:55:58]} {[%emt 00:02:53]} gxf4
{[%clk 00:56:16]} {[%emt 00:01:21]} 15. Bxf4 {[%clk 00:56:20]} {[%emt
00:00:07]} Be5 {[%clk 00:55:20]} {[%emt 00:01:27]} 16. Bxe5 {[%clk 00:52:14]}
{[%emt 00:04:35]} Nxe5 {[%clk 00:55:45]} {[%emt 00:00:05]} 17. Rg1 {[%clk
00:52:12]} {[%emt 00:00:30]} Ke7 {[%clk 00:54:35]} {[%emt 00:01:42]} 18. Kf2
{[%clk 00:45:30]} {[%emt 00:07:11]} Rcg8 {[%clk 00:45:32]} {[%emt 00:09:34]} 19.
Rxg8 {[%clk 00:41:48]} {[%emt 00:04:12]} Rxg8 {[%clk 00:45:56]} {[%emt
00:00:07]} 20. Rg1 {[%clk 00:41:56]} {[%emt 00:00:20]} Rxg1 {[%clk 00:44:05]}
{[%emt 00:02:22]} 21. Kxg1 {[%clk 00:38:12]} {[%emt 00:04:13]} Kf6 {[%clk
00:44:06]} {[%emt 00:00:30]} 22. h4 {[%clk 00:25:54]} {[%emt 00:12:49]} Ng4
{[%clk 00:41:25]} {[%emt 00:03:11]} 23. Bd3 {[%clk 00:23:41]} {[%emt 00:02:42]}
Ke5 {[%clk 00:39:42]} {[%emt 00:02:14]} 24. Ne2 {[%clk 00:21:58]} {[%emt
00:02:12]} c5 {[%clk 00:37:40]} {[%emt 00:02:32]} 25. b3 {[%clk 00:19:49]}
{[%emt 00:02:40]} c6 {[%clk 00:33:47]} {[%emt 00:04:23]} 26. c4 {[%clk
00:16:29]} {[%emt 00:03:50]} f6 {[%clk 00:31:37]} {[%emt 00:02:39]} 27. Kg2
{[%clk 00:16:19]} {[%emt 00:00:40]} Nh6 {[%clk 00:28:46]} {[%emt 00:03:21]} 28.
Kg3 {[%clk 00:07:11]} {[%emt 00:09:38]} Bg4 {[%clk 00:28:47]} {[%emt 00:00:29]}
29. Nf4 {[%clk 00:06:37]} {[%emt 00:01:04]} Kd4 {[%clk 00:28:37]} {[%emt
00:00:40]} 30. Be2 {[%clk 00:04:25]} {[%emt 00:02:42]} Bxe2 {[%clk 00:28:28]}
{[%emt 00:00:39]} 31. Nxe2+ {[%clk 00:04:51]} {[%emt 00:00:04]} Kxe4 {[%clk
00:28:52]} {[%emt 00:00:06]} 32. Kf2 {[%clk 00:05:00]} {[%emt 00:00:21]} b5
{[%clk 00:28:21]} {[%emt 00:01:01]} 33. cxb5 {[%emt 00:00:51]} cxb5 {[%clk
00:27:38]} {[%emt 00:01:12]} 34. Nc3+ {[%clk 00:05:04]} {[%emt 00:00:06]} Kd3
{[%clk 00:27:59]} {[%emt 00:00:10]} 35. Nxb5 {[%clk 00:05:30]} {[%emt
00:00:03]} Kc2 {[%clk 00:28:14]} {[%emt 00:00:15]} 36. Nxa7 {[%clk 00:05:13]}
{[%emt 00:00:47]} Kb2 {[%clk 00:28:33]} {[%emt 00:00:11]} 37. a4 {[%clk
00:03:03]} {[%emt 00:02:40]} Kxb3 {[%clk 00:28:58]} {[%emt 00:00:06]} 38. a5
{[%clk 00:03:24]} {[%emt 00:00:09]} Ka4 {[%clk 00:29:11]} {[%emt 00:00:17]} 39.
a6 {[%clk 00:01:49]} {[%emt 00:02:05]} Ka5 {[%clk 00:29:32]} {[%emt 00:00:08]}
40. Nb5 {[%clk 00:01:05]} {[%emt 00:01:14]} Kxa6 {[%clk 00:29:38]} {[%emt
00:00:25]} 41. Nc3 {[%clk 00:28:47]} {[%emt 00:02:48]} c4 {[%clk 00:47:13]}
{[%emt 00:12:55]} 42. Nd5 {[%clk 00:19:47]} {[%emt 00:09:29]} Ng8 {[%clk
00:36:53]} {[%emt 00:10:50]} 43. Ne3 {[%clk 00:10:10]} {[%emt 00:10:07]} c3
{[%clk 00:35:11]} {[%emt 00:02:12]} 44. Ke2 {[%clk 00:10:25]} {[%emt 00:00:15]}
Nh6 {[%emt 00:00:11]} 45. Nd5 {[%clk 00:08:22]} {[%emt 00:02:29]} Kb5 {[%clk
00:34:21]} {[%emt 00:01:43]} 46. Nxc3+ {[%clk 00:08:28]} {[%emt 00:00:23]} Kc4
{[%clk 00:34:43]} {[%emt 00:00:10]} 47. Ne4 {[%clk 00:08:39]} {[%emt 00:00:19]}
f5 {[%clk 00:33:23]} {[%emt 00:01:49]} 48. Ke3 {[%clk 00:05:37]} {[%emt
00:03:27]} Kd5 {[%clk 00:33:25]} {[%emt 00:00:34]} 49. Nf2 {[%clk 00:05:48]}
{[%emt 00:00:18]} Ng4+ {[%clk 00:33:24]} {[%emt 00:00:32]} 50. Nxg4 {[%clk
00:06:08]} {[%emt 00:00:09]} 1-0

[Event "Schack-SM 2023: Veteran-SM 65+"]
[Site "Helsingborg Arena, Mellersta Stenbocksgatan 14, Helsingborg, Sweden"]
[Date "2023.07.08"]
[Round "8.5"]
[White "Sigeman, Johan"]
[Black "Quinn, David"]
[Result "0-1"]
[TimeControl "90 minutes for 40 moves + 30 minutes for the rest of games + 30 seconds per move from move one."]
[WhiteElo "2052"]
[BlackElo "2006"]

1. Nf3 {[%clk 01:30:46]} {[%emt 00:00:13]} Nf6 {[%clk 01:30:49]} {[%emt
00:00:11]} 2. g3 {[%clk 01:30:55]} {[%emt 00:00:22]} g6 {[%clk 01:31:08]}
{[%emt 00:00:11]} 3. Bg2 {[%clk 01:31:19]} {[%emt 00:00:06]} Bg7 {[%clk
01:31:33]} {[%emt 00:00:05]} 4. O-O {[%clk 01:31:44]} {[%emt 00:00:05]} O-O
{[%clk 01:31:56]} {[%emt 00:00:06]} 5. d4 {[%clk 01:31:22]} {[%emt 00:00:53]}
d6 {[%clk 01:32:13]} {[%emt 00:00:12]} 6. c4 {[%clk 01:31:27]} {[%emt
00:00:25]} c5 {[%clk 01:30:55]} {[%emt 00:01:48]} 7. b3 {[%clk 01:26:21]}
{[%emt 00:05:36]} Nc6 {[%clk 01:28:27]} {[%emt 00:02:58]} 8. Bb2 {[%clk
01:24:11]} {[%emt 00:02:41]} Bf5 {[%clk 01:14:00]} {[%emt 00:14:56]} 9. d5
{[%clk 01:17:21]} {[%emt 00:07:21]} Nb4 {[%clk 01:12:00]} {[%emt 00:02:30]} 10.
Nbd2 {[%clk 01:13:55]} {[%emt 00:03:56]} Rb8 {[%clk 01:09:47]} {[%emt
00:02:43]} 11. a3 {[%clk 01:10:51]} {[%emt 00:03:35]} Na6 {[%clk 01:09:51]}
{[%emt 00:00:25]} 12. Nh4 {[%clk 01:10:29]} {[%emt 00:00:51]} Bd7 {[%clk
01:07:18]} {[%emt 00:03:03]} 13. e4 {[%clk 01:09:14]} {[%emt 00:01:45]} b5
{[%clk 01:00:42]} {[%emt 00:07:07]} 14. Rb1 {[%clk 01:05:26]} {[%emt 00:04:18]}
e5 {[%clk 00:52:38]} {[%emt 00:08:33]} 15. Nhf3 {[%clk 00:52:54]} {[%emt
00:13:03]} Nc7 {[%clk 00:46:32]} {[%emt 00:06:36]} 16. Ne1 {[%clk 00:49:05]}
{[%emt 00:04:19]} Qe7 {[%clk 00:37:22]} {[%emt 00:09:40]} 17. Nd3 {[%clk
00:45:47]} {[%emt 00:03:48]} Ng4 {[%clk 00:34:06]} {[%emt 00:03:46]} 18. h3
{[%clk 00:42:06]} {[%emt 00:04:11]} Nh6 {[%clk 00:34:26]} {[%emt 00:00:09]} 19.
f4 {[%clk 00:35:59]} {[%emt 00:06:37]} f6 {[%clk 00:34:44]} {[%emt 00:00:12]}
20. Bc3 {[%clk 00:30:52]} {[%emt 00:05:38]} Nf7 {[%clk 00:31:49]} {[%emt
00:03:24]} 21. f5 {[%clk 00:28:43]} {[%emt 00:02:40]} Bh6 {[%clk 00:24:38]}
{[%emt 00:07:40]} 22. Qe2 {[%clk 00:25:32]} {[%emt 00:03:41]} Na8 {[%clk
00:13:23]} {[%emt 00:11:46]} 23. fxg6 {[%clk 00:21:41]} {[%emt 00:04:21]} hxg6
{[%clk 00:13:41]} {[%emt 00:00:12]} 24. Nf3 {[%clk 00:21:08]} {[%emt 00:01:03]}
Nb6 {[%clk 00:11:54]} {[%emt 00:02:17]} 25. Nh4 {[%clk 00:19:27]} {[%emt
00:02:10]} Kh7 {[%clk 00:11:18]} {[%emt 00:01:06]} 26. Nf2 {[%clk 00:19:31]}
{[%emt 00:00:27]} Ng5 {[%clk 00:09:40]} {[%emt 00:02:07]} 27. cxb5 {[%clk
00:19:20]} {[%emt 00:00:41]} f5 {[%clk 00:08:13]} {[%emt 00:01:57]} 28. Qd3
{[%clk 00:15:11]} {[%emt 00:04:40]} f4 {[%clk 00:07:38]} {[%emt 00:01:04]} 29.
g4 {[%clk 00:10:36]} {[%emt 00:05:05]} Rfc8 {[%clk 00:06:08]} {[%emt 00:02:00]}
30. Nf3 {[%clk 00:06:52]} {[%emt 00:04:14]} c4 {[%clk 00:05:42]} {[%emt
00:00:57]} 31. bxc4 {[%clk 00:06:51]} {[%emt 00:00:31]} Nxc4 {[%clk 00:05:44]}
{[%emt 00:00:28]} 32. a4 {[%clk 00:06:42]} {[%emt 00:00:39]} Ne3 {[%clk
00:04:28]} {[%emt 00:01:45]} 33. Rfc1 {[%clk 00:06:56]} {[%emt 00:00:16]} Rc4
{[%clk 00:03:49]} {[%emt 00:01:09]} 34. Nxg5+ {[%clk 00:05:31]} {[%emt
00:01:55]} Qxg5 {[%clk 00:02:44]} {[%emt 00:01:36]} 35. Bd2 {[%clk 00:05:51]}
{[%emt 00:00:11]} Rxa4 {[%clk 00:02:08]} {[%emt 00:01:05]} 36. Rc7 {[%clk
00:06:14]} {[%emt 00:00:06]} Qd8 {[%clk 00:02:25]} {[%emt 00:00:14]} 37. Rbc1
{[%clk 00:05:57]} {[%emt 00:00:47]} Kg8 {[%clk 00:02:10]} {[%emt 00:00:43]} 38.
Qb3 {[%clk 00:03:34]} {[%emt 00:02:54]} Bxb5 {[%clk 00:01:25]} {[%emt
00:01:15]} 39. Qc3 {[%clk 00:01:55]} {[%emt 00:02:09]} Rc4 {[%clk 00:01:21]}
{[%emt 00:00:34]} 40. Qa5 {[%clk 00:01:47]} {[%emt 00:00:39]} Rxc1+ {[%clk
00:01:08]} {[%emt 00:00:43]} 41. Bxc1 {[%clk 00:02:10]} {[%emt 00:00:07]} a6
{[%clk 00:28:15]} {[%emt 00:03:24]} 42. Qc3 {[%clk 00:29:00]} {[%emt 00:03:39]}
Nc4 {[%clk 00:24:13]} {[%emt 00:04:31]} 43. Ra7 {[%clk 00:24:54]} {[%emt
00:04:36]} Bf8 {[%clk 00:18:02]} {[%emt 00:06:41]} 0-1

[Event "Schack-SM 2023: Veteran-SM 50+"]
[Site "Helsingborg Arena, Mellersta Stenbocksgatan 14, Helsingborg, Sweden"]
[Date "2023.07.08"]
[Round "8.5"]
[White "Nurmi, Tommy"]
[Black "Ljung, Rickard"]
[Result "1/2-1/2"]
[TimeControl "90 minutes for 40 moves + 30 minutes for the rest of games + 30 seconds per move from move one."]
[WhiteElo "2010"]
[BlackElo "1939"]

1. Nf3 {[%clk 01:30:36]} {[%emt 00:00:22]} Nf6 {[%clk 01:30:39]} {[%emt
00:00:23]} 2. b3 {[%clk 01:30:47]} {[%emt 00:00:19]} g6 {[%clk 01:30:11]}
{[%emt 00:00:58]} 3. Bb2 {[%clk 01:31:07]} {[%emt 00:00:09]} Bg7 {[%clk
01:30:36]} {[%emt 00:00:06]} 4. e3 {[%clk 01:30:34]} {[%emt 00:01:02]} c5
{[%clk 01:30:10]} {[%emt 00:00:56]} 5. d4 {[%clk 01:27:02]} {[%emt 00:04:02]}
O-O {[%clk 01:29:53]} {[%emt 00:00:47]} 6. Be2 {[%clk 01:26:38]} {[%emt
00:00:53]} b6 {[%clk 01:25:46]} {[%emt 00:04:38]} 7. O-O {[%clk 01:26:17]}
{[%emt 00:00:49]} Bb7 {[%clk 01:25:57]} {[%emt 00:00:20]} 8. Nbd2 {[%clk
01:25:22]} {[%emt 00:01:24]} Na6 {[%clk 01:25:06]} {[%emt 00:01:22]} 9. Re1
{[%clk 01:15:14]} {[%emt 00:10:37]} Rc8 {[%clk 01:23:30]} {[%emt 00:02:07]} 10.
Rc1 {[%clk 01:12:18]} {[%emt 00:03:26]} Re8 {[%clk 01:20:38]} {[%emt 00:03:22]}
11. a3 {[%clk 01:06:08]} {[%emt 00:06:40]} Nb8 {[%clk 01:16:37]} {[%emt
00:04:32]} 12. c4 {[%clk 01:00:29]} {[%emt 00:06:07]} d6 {[%clk 01:13:21]}
{[%emt 00:03:47]} 13. d5 {[%clk 00:57:15]} {[%emt 00:03:43]} Rc7 {[%clk
01:11:48]} {[%emt 00:02:04]} 14. Qc2 {[%clk 00:53:03]} {[%emt 00:04:42]} Nbd7
{[%clk 01:10:21]} {[%emt 00:01:58]} 15. Bf1 {[%clk 00:48:32]} {[%emt 00:04:59]}
Nf8 {[%clk 01:06:26]} {[%emt 00:04:26]} 16. Rcd1 {[%clk 00:45:46]} {[%emt
00:03:16]} e5 {[%clk 01:05:17]} {[%emt 00:01:40]} 17. dxe6 {[%clk 00:41:39]}
{[%emt 00:04:37]} Nxe6 {[%clk 01:01:43]} {[%emt 00:04:04]} 18. e4 {[%clk
00:30:24]} {[%emt 00:11:45]} Rd7 {[%clk 00:59:51]} {[%emt 00:02:22]} 19. e5
{[%clk 00:23:28]} {[%emt 00:07:25]} dxe5 {[%clk 00:57:47]} {[%emt 00:02:34]} 20.
Bxe5 {[%clk 00:21:13]} {[%emt 00:02:44]} Nd4 {[%clk 00:46:21]} {[%emt
00:11:57]} 21. Nxd4 {[%clk 00:15:07]} {[%emt 00:06:35]} cxd4 {[%clk 00:46:30]}
{[%emt 00:00:21]} 22. Bxf6 {[%clk 00:12:22]} {[%emt 00:03:16]} Bxf6 {[%clk
00:46:04]} {[%emt 00:00:56]} 23. Ne4 {[%clk 00:11:33]} {[%emt 00:01:19]} Bxe4
{[%clk 00:45:25]} {[%emt 00:01:09]} 1/2-1/2

[Event "Schack-SM 2023: Mastarklassen"]
[Site "Helsingborg Arena, Mellersta Stenbocksgatan 14, Helsingborg, Sweden"]
[Date "2023.07.08"]
[Round "8.2"]
[White "Cederstam, Carl"]
[Black "Frisk, Ellinor"]
[Result "1-0"]
[TimeControl "90 minutes for 40 moves + 30 minutes for the rest of games + 30 seconds per move from move one."]
[WhiteTitle "FM"]
[BlackTitle "WIM"]
[WhiteElo "2196"]
[BlackElo "2178"]

1. c4 {[%clk 01:30:50]} {[%emt 00:00:08]} c5 {[%clk 01:30:42]} {[%emt
00:00:19]} 2. g3 {[%clk 01:31:12]} {[%emt 00:00:08]} e5 {[%clk 01:29:53]}
{[%emt 00:01:20]} 3. Bg2 {[%clk 01:31:15]} {[%emt 00:00:26]} Nc6 {[%clk
01:30:01]} {[%emt 00:00:23]} 4. Nc3 {[%clk 01:31:00]} {[%emt 00:00:44]} g6
{[%clk 01:30:00]} {[%emt 00:00:32]} 5. Nf3 {[%clk 01:30:53]} {[%emt 00:00:36]}
d6 {[%clk 01:30:15]} {[%emt 00:00:15]} 6. a3 {[%clk 01:30:25]} {[%emt
00:00:58]} Bg7 {[%clk 01:29:36]} {[%emt 00:01:09]} 7. O-O {[%clk 01:27:19]}
{[%emt 00:03:36]} Nge7 {[%clk 01:29:08]} {[%emt 00:00:59]} 8. b4 {[%clk
01:26:52]} {[%emt 00:00:55]} O-O {[%clk 01:18:32]} {[%emt 00:11:08]} 9. Rb1
{[%clk 01:26:36]} {[%emt 00:00:46]} Rb8 {[%clk 01:04:02]} {[%emt 00:15:00]} 10.
d3 {[%clk 01:05:34]} {[%emt 00:21:32]} b6 {[%clk 00:59:59]} {[%emt 00:04:33]}
11. Ne1 {[%clk 00:58:23]} {[%emt 00:07:40]} Bb7 {[%clk 00:58:22]} {[%emt
00:02:07]} 12. Nd5 {[%clk 00:51:39]} {[%emt 00:07:13]} Nxd5 {[%clk 00:55:58]}
{[%emt 00:02:55]} 13. cxd5 {[%clk 00:51:32]} {[%emt 00:00:37]} Ne7 {[%clk
00:55:57]} {[%emt 00:00:31]} 14. Qb3 {[%clk 00:44:31]} {[%emt 00:07:32]} cxb4
{[%clk 00:54:24]} {[%emt 00:02:04]} 15. axb4 {[%clk 00:42:16]} {[%emt
00:02:44]} Qd7 {[%clk 00:53:53]} {[%emt 00:01:02]} 16. b5 {[%clk 00:32:42]}
{[%emt 00:10:03]} Rfc8 {[%clk 00:52:11]} {[%emt 00:02:11]} 17. Ba3 {[%clk
00:32:11]} {[%emt 00:01:01]} Bf8 {[%clk 00:47:14]} {[%emt 00:05:27]} 18. e4
{[%clk 00:29:10]} {[%emt 00:03:32]} Rc7 {[%clk 00:43:25]} {[%emt 00:04:19]} 19.
Nf3 {[%clk 00:28:52]} {[%emt 00:00:47]} Rbc8 {[%clk 00:42:48]} {[%emt
00:01:08]} 20. Rfc1 {[%clk 00:28:31]} {[%emt 00:00:50]} Rxc1+ {[%clk 00:40:22]}
{[%emt 00:02:56]} 21. Rxc1 {[%clk 00:24:51]} {[%emt 00:04:10]} Rxc1+ {[%clk
00:40:46]} {[%emt 00:00:06]} 22. Bxc1 {[%clk 00:25:18]} {[%emt 00:00:03]} a6
{[%clk 00:40:16]} {[%emt 00:01:01]} 23. Ba3 {[%clk 00:16:57]} {[%emt 00:08:50]}
Nc8 {[%clk 00:29:08]} {[%emt 00:11:39]} 24. d4 {[%clk 00:11:22]} {[%emt
00:06:05]} exd4 {[%clk 00:20:44]} {[%emt 00:08:54]} 25. Nxd4 {[%clk 00:10:12]}
{[%emt 00:01:41]} Bg7 {[%clk 00:17:22]} {[%emt 00:03:52]} 26. Nc6 {[%clk
00:10:35]} {[%emt 00:00:07]} axb5 {[%clk 00:16:15]} {[%emt 00:01:37]} 27. Qxb5
{[%clk 00:10:50]} {[%emt 00:00:15]} Qe8 {[%clk 00:10:30]} {[%emt 00:06:13]} 28.
h4 {[%clk 00:08:38]} {[%emt 00:02:43]} f5 {[%clk 00:09:39]} {[%emt 00:01:22]}
29. exf5 {[%clk 00:07:00]} {[%emt 00:02:07]} gxf5 {[%clk 00:09:09]} {[%emt
00:01:00]} 30. Qb1 {[%clk 00:06:57]} {[%emt 00:00:33]} f4 {[%clk 00:08:15]}
{[%emt 00:01:24]} 31. gxf4 {[%clk 00:03:50]} {[%emt 00:03:37]} Qh5 {[%clk
00:08:39]} {[%emt 00:00:06]} 32. Qe4 {[%clk 00:03:30]} {[%emt 00:00:49]} Qd1+
{[%clk 00:04:49]} {[%emt 00:04:21]} 33. Kh2 {[%clk 00:03:07]} {[%emt 00:00:53]}
Qg4 {[%clk 00:05:14]} {[%emt 00:00:05]} 34. Bh3 {[%clk 00:00:52]} {[%emt
00:02:44]} Qxh4 {[%clk 00:04:37]} {[%emt 00:01:09]} 35. Qe8+ {[%clk 00:01:19]}
{[%emt 00:00:03]} Bf8 {[%clk 00:04:57]} {[%emt 00:00:09]} 36. Qe6+ {[%clk
00:01:46]} {[%emt 00:00:04]} Kh8 {[%clk 00:04:40]} {[%emt 00:00:47]} 37. Bb2+
{[%clk 00:02:11]} {[%emt 00:00:05]} Bg7 {[%clk 00:05:04]} {[%emt 00:00:05]} 38.
Qe8# {[%clk 00:02:37]} {[%emt 00:00:04]} 1-0